bitfinex/quotes_ETHUSD_20251004
["timestamp","ask_amount","ask_price","bid_price","bid_amount"]
[1759537659045,0.03777839,4499.9,4498.8,2.22277281]
[1759537659254,0.01,4499.9,4498.6,2.2228712]
[1759537659548,0.01,4499.9,4498.9,2.503]
[1759537659748,0.01,4499.9,4499.0,0.26697458]
[1759537660059,0.01,4499.9,4499.0,2.48965117]
[1759537660248,0.01,4499.9,4499.1,0.4388]
[1759537660444,0.01,4499.9,4499.1,0.3888]
[1759537660830,0.1112,4499.4,4499.2,0.01667296]
[1759537661037,0.01,4499.9,4499.3,2.22251994]
[1759537661245,0.58216511,4499.8,4499.4,0.01667137]
[1759537661474,0.1112,4499.8,4499.4,0.01667137]
[1759537662085,0.01,4499.9,4499.7,2.22232897]
[1759537662241,0.01,4499.9,4499.8,0.26696815]
[1759537662581,0.01,4499.9,4499.8,2.87808914]
[1759537663650,0.01,4499.9,4499.8,5.38108914]
[1759537663850,0.01,4499.9,4499.8,5.99802099]
[1759537664162,0.01,4499.9,4499.8,3.60622099]
[1759537664368,0.01,4499.9,4499.8,6.1959]
[1759537664742,0.01,4499.9,4499.8,8.41822099]
[1759537666052,0.01,4499.9,4499.8,10.63722099]
[1759537666284,0.01,4499.9,4499.8,21.40807099]
[1759537666465,0.01,4499.9,4499.8,17.93278799]
[1759537666665,0.01,4499.9,4499.8,17.27911999]
[1759537666865,0.01,4499.9,4499.8,16.62545199]
[1759537667071,0.01,4499.9,4499.8,13.54765199]
[1759537667274,0.01,4499.9,4499.8,13.92212799]
[1759537667782,0.01,4499.9,4499.8,13.04233199]
[1759537668148,0.2224,4501.0,4500.4,2.22201906]
[1759537668348,0.2224,4501.0,4500.5,2.8928]
[1759537668545,0.1724,4501.0,4500.5,2.8928]
[1759537668885,0.1724,4501.0,4500.6,0.3888]
[1759537669392,0.1724,4501.0,4500.7,2.61067411]
[1759537669595,0.45,4502.7,4500.9,2.22175546]
[1759537669805,0.448,4501.7,4501.0,0.01664859]
[1759537670094,0.02776173,4502.6,4501.1,2.504]
[1759537670298,0.4637,4502.5,4501.2,0.40544699]
[1759537670597,0.448,4502.1,4501.2,0.40544699]
[1759537670987,0.448,4502.1,4501.2,0.3888]
[1759537671204,0.002,4502.2,4501.3,0.01664662]
[1759537671350,0.002,4502.2,4501.4,2.22152983]
[1759537671549,0.45,4502.2,4501.5,0.40544458]
[1759537671977,0.45,4502.2,4501.5,2.62692129]
[1759537672183,0.45,4502.2,4501.5,0.68446941]
[1759537672368,0.45,4502.2,4501.1,2.8928]
[1759537672573,0.45,4502.2,4501.1,5.1144741]
[1759537672882,0.45,4502.2,4501.1,2.6104741]
[1759537673103,0.45,4502.2,4501.2,2.504]
[1759537673404,0.45,4502.2,4500.7,4.528]
[1759537673405,0.02776482,4502.1,4500.4,2.309]
[1759537673570,0.4637,4502.0,4500.7,2.22186469]
[1759537673751,0.02776605,4501.9,4500.8,0.01665105]
[1759537673952,0.02776605,4501.9,4500.8,2.23847018]
[1759537674264,0.4637,4501.8,4500.8,2.23847018]
[1759537674460,0.4637,4501.8,4500.9,2.22176876]
[1759537674665,0.4637,4501.8,4501.0,0.01665106]
[1759537674860,0.4637,4501.8,4501.1,2.503]
[1759537675185,0.4637,4501.8,4501.2,0.01664871]
[1759537675906,0.02776543,4502.0,4501.2,0.01664871]
[1759537676413,0.02776482,4502.1,4501.2,0.01664871]
[1759537678217,0.1112,4501.4,4501.2,0.01664871]
[1759537680530,0.02776482,4502.1,4501.3,0.3888]
[1759537680742,0.1112,4501.7,4501.4,0.01664581]
[1759537681238,0.1112,4501.7,4501.5,0.3888]
[1759537681547,0.1112,4501.7,4501.6,2.51964594]
[1759537681689,0.1112,4501.9,4501.6,2.51964594]
[1759537682087,0.1112,4501.9,4501.6,2.90844594]
[1759537682337,0.1112,4501.9,4501.6,2.51964594]
[1759537684254,0.1112,4501.9,4501.6,2.503]
[1759537685310,0.1112,4501.9,4501.7,0.01664427]
[1759537685518,0.1112,4501.9,4501.8,0.3888]
[1759537685747,0.1132,4502.2,4501.8,0.3888]
[1759537685956,0.1132,4502.2,4501.9,0.40544137]
[1759537686114,0.1132,4502.2,4502.0,2.503]
[1759537686314,0.1132,4502.2,4502.1,0.01663977]
[1759537686848,0.1132,4502.2,4502.1,0.40543977]
[1759537687040,0.0632,4502.2,4502.1,0.40543977]
[1759537687241,0.0632,4502.2,4502.1,0.72634864]
[1759537687436,0.0632,4502.2,4502.1,0.33754864]
[1759537688030,0.002,4502.7,4502.1,0.33754864]
[1759537688214,0.1112,4502.4,4502.1,0.33754864]
[1759537688416,0.002,4502.7,4502.1,0.33754864]
[1759537688417,0.002,4502.7,4502.2,0.3888]
[1759537688616,0.1132,4502.7,4502.3,0.01663601]
[1759537688818,0.1132,4502.7,4502.4,2.8918]
[1759537689017,0.002,4502.7,4502.5,0.0166344]
[1759537689215,0.002,4502.7,4502.5,0.33754327]
[1759537689653,0.4657,4503.6,4502.5,0.33754327]
[1759537689854,0.1112,4503.0,4502.5,0.0166344]
[1759537690018,0.4657,4503.6,4502.7,2.22088598]
[1759537690214,0.4657,4503.6,4502.8,2.51962812]
[1759537690215,0.1112,4503.2,4502.8,2.51962812]
[1759537690759,0.4637,4503.1,4502.8,2.51962812]
[1759537690954,0.1112,4503.2,4502.8,2.51962812]
[1759537691130,0.5749,4503.2,4502.8,2.503]
[1759537691460,0.4637,4503.1,4502.8,2.503]
[1759537692458,0.4637,4503.0,4502.9,2.503]
[1759537692958,0.5749,4503.0,4502.9,2.503]
[1759537695432,0.5749,4503.0,4501.4,2.218]
[1759537695433,0.60265927,4503.0,4501.4,2.218]
[1759537695633,0.1112,4502.3,4501.5,2.6132]
[1759537696860,0.1112,4502.3,4501.5,4.83467662]
[1759537698135,0.1112,4502.3,4501.5,2.6132]
[1759537699952,0.1112,4502.3,4501.5,4.83466493]
[1759537700358,0.1112,4502.3,4501.6,0.01664335]
[1759537700558,0.1112,4502.3,4501.5,2.6132]
[1759537700797,0.1112,4502.3,4501.5,4.83467438]
[1759537701794,0.1112,4502.3,4501.5,2.6132]
[1759537703795,0.1112,4502.3,4501.5,4.8346734]
[1759537704702,0.1112,4502.3,4501.5,2.6132]
[1759537705102,0.4375,4502.2,4501.6,2.502]
[1759537705411,0.4375,4502.2,4501.1,2.23164259]
[1759537705412,0.1112,4501.9,4501.7,2.502]
[1759537706281,0.1112,4501.9,4501.8,2.502]
[1759537706889,0.5487,4501.9,4501.8,2.502]
[1759537709026,0.4611,4502.2,4501.8,2.502]
[1759537709236,0.02776173,4502.6,4501.8,2.502]
[1759537709598,0.4611,4502.5,4501.8,2.502]
[1759537709799,0.02776297,4502.4,4501.8,2.502]
[1759537710402,0.4611,4502.3,4501.8,2.502]
[1759537710598,0.4611,4502.2,4501.8,2.502]
[1759537710841,0.4611,4502.1,4501.8,2.502]
[1759537711403,0.48886297,4502.4,4501.8,2.502]
[1759537715623,0.02776297,4502.4,4501.8,2.502]
[1759537715860,0.48886358,4502.3,4501.8,2.502]
[1759537716225,0.4611,4502.2,4501.8,2.502]
[1759537716436,0.4611,4502.1,4501.8,2.502]
[1759537716767,0.02776235,4502.5,4501.8,2.502]
[1759537716768,0.4611,4502.0,4501.8,2.502]
[1759537717826,0.4611,4501.9,4501.8,2.502]
[1759537718026,0.48886605,4501.9,4501.6,2.502]
[1759537718251,2.22138303,4501.7,4501.6,2.502]
[1759537718452,0.48886728,4501.7,4501.6,2.502]
[1759537718656,0.5766628,4501.7,4501.6,2.502]
[1759537719040,3.7545865,4501.7,4501.6,2.502]
[1759537719566,3.57596953,4501.7,4501.6,2.502]
[1759537719763,5.97596953,4501.7,4501.6,2.502]
[1759537720654,3.7545865,4501.7,4501.6,2.502]
[1759537720965,5.97596953,4501.7,4501.6,2.502]
[1759537731390,3.7545865,4501.7,4501.6,2.502]
[1759537731588,5.54263681,4501.7,4501.6,2.502]
[1759537731786,5.51486953,4501.7,4501.6,2.502]
[1759537733505,5.98916953,4501.7,4501.6,2.502]
[1759537734301,4.62143237,4501.6,4501.5,0.001]
[1759537734504,5.69464932,4501.6,4501.5,0.001]
[1759537735115,6.36139673,4501.6,4501.5,0.001]
[1759537735308,5.88709673,4501.6,4501.5,0.001]
[1759537735812,1.26566436,4501.6,4501.5,0.001]
[1759537736019,3.09451531,4501.6,4501.5,0.001]
[1759537736223,2.91594768,4501.6,4501.5,0.001]
[1759537736537,0.66674741,4501.6,4501.5,0.3898]
[1759537736842,0.66674741,4501.6,4501.5,0.001]
[1759537738207,0.66674741,4501.6,4501.5,0.3898]
[1759537739106,0.66674741,4501.6,4501.5,0.001]
[1759537739427,0.69451531,4501.6,4501.5,0.001]
[1759537739625,0.66674741,4501.6,4501.5,0.001]
[1759537739988,0.69451531,4501.6,4501.5,0.001]
[1759537740193,0.66674741,4501.6,4501.5,0.001]
[1759537742030,0.69451531,4501.6,4501.5,0.001]
[1759537749046,3.39024768,4501.6,4501.5,0.001]
[1759537749348,1.16881531,4501.6,4501.5,0.001]
[1759537750405,3.39024768,4501.6,4501.5,0.001]
[1759537751544,4.14722105,4501.6,4501.5,0.001]
[1759537751751,4.62152105,4501.6,4501.5,0.001]
[1759537751907,4.59375315,4501.6,4501.5,0.001]
[1759537753205,6.99375315,4501.6,4501.5,0.001]
[1759537753407,7.46904338,4501.6,4501.5,0.001]
[1759537753602,7.46904327,4501.6,4501.5,0.001]
[1759537754744,11.65904327,4501.6,4501.5,0.001]
[1759537758722,7.46904327,4501.6,4501.5,0.001]
[1759537759880,8.10264327,4501.6,4501.5,0.001]
[1759537760768,8.69487382,4501.6,4501.5,0.001]
[1759537761145,8.10264327,4501.6,4501.5,0.001]
[1759537763978,5.25527914,4501.1,4501.0,0.001]
[1759537764174,5.73056926,4501.1,4501.0,0.001]
[1759537764380,6.19206926,4501.1,4501.0,0.001]
[1759537764670,6.85902568,4501.1,4501.0,0.001]
[1759537766675,8.90052568,4501.1,4501.0,0.001]
[1759537766906,10.47423906,4501.1,4501.0,0.001]
[1759537767608,6.87613906,4501.1,4501.0,0.001]
[1759537768378,7.31793906,4501.1,4501.0,0.001]
[1759537768796,7.50973906,4501.1,4501.0,0.001]
[1759537769004,6.87613906,4501.1,4501.0,0.001]
[1759537769710,6.40084894,4501.1,4501.0,0.001]
[1759537769926,6.51204894,4501.1,4501.0,0.001]
[1759537774114,6.51204894,4501.1,4501.0,0.3898]
[1759537774352,5.39983556,4501.1,4501.0,0.3898]
[1759537774686,5.39983556,4501.1,4501.0,0.001]
[1759537779116,5.84163556,4501.1,4501.0,0.001]
[1759537780454,5.81941852,4501.1,4501.0,0.001]
[1759537780650,5.37761852,4501.1,4501.0,0.001]
[1759537780852,6.5793406,4501.1,4501.0,0.001]
[1759537781369,10.19070468,4501.1,4501.0,0.001]
[1759537781518,10.78391948,4501.1,4501.0,0.001]
[1759537781714,10.19070468,4501.1,4501.0,0.001]
[1759537787957,21.43070468,4501.1,4501.0,0.001]
[1759537790669,21.43070468,4501.1,4498.7,0.002]
[1759537790670,0.6336,4500.0,4496.4,1.59341592]
[1759537790855,2.22306204,4498.3,4496.5,0.01668687]
[1759537791053,0.59244777,4498.9,4496.1,0.01]
[1759537791054,2.25090035,4498.2,4496.1,0.01]
[1759537791279,2.33987356,4498.2,4496.1,2.23410809]
[1759537791486,2.33987356,4498.2,4496.4,2.22399466]
[1759537791691,2.33987356,4498.2,4498.1,0.3988]
[1759537795918,2.33987356,4498.2,4498.1,0.3998]
[1759537797691,2.33987356,4498.2,4498.1,0.011]
[1759537800328,5.4361637,4498.2,4498.1,0.011]
[1759537800619,5.51957481,4498.2,4498.1,0.011]
[1759537800986,0.08897321,4498.2,4498.1,0.3998]
[1759537801186,0.02777962,4499.7,4498.1,0.3998]
[1759537801415,3.09825328,4500.1,4498.2,0.01668409]
[1759537801416,0.87607978,4500.1,4498.2,0.01668409]
[1759537801604,2.22253089,4499.4,4498.3,0.3888]
[1759537801803,2.25037759,4499.3,4498.4,0.01668156]
[1759537802035,0.02778209,4499.3,4498.5,0.3888]
[1759537802417,0.02778024,4499.6,4498.6,0.01668038]
[1759537802619,0.3888,4499.3,4498.7,1.0608]
[1759537802807,0.3888,4499.3,4498.8,0.40547878]
[1759537803122,2.22192913,4500.6,4498.8,0.40547878]
[1759537803123,0.02777777,4500.0,4498.8,0.40547878]
[1759537803332,0.66698311,4499.8,4498.8,0.40547878]
[1759537805831,2.24991517,4500.2,4498.8,2.62828726]
[1759537805832,0.02777654,4500.2,4498.8,2.62828726]
[1759537806016,2.22211934,4500.3,4498.9,0.3888]
[1759537806217,0.66695493,4500.1,4498.9,0.3888]
[1759537806404,0.02777777,4500.0,4498.9,0.3888]
[1759537806850,2.42777777,4500.0,4498.9,0.3888]
[1759537807495,0.02777777,4500.0,4498.9,0.3888]
[1759537807904,0.66695493,4500.1,4499.0,0.01667414]
[1759537808100,0.66695493,4500.1,4499.1,0.65162325]
[1759537808310,0.66695493,4500.1,4499.2,0.40547211]
[1759537810806,0.02777777,4500.0,4498.7,0.672]
[1759537811007,0.1112,4499.1,4498.8,0.3888]
[1759537811640,0.1112,4499.1,4498.8,0.506]
[1759537812016,0.1112,4499.1,4498.9,0.3888]
[1759537812408,0.002,4501.1,4498.9,0.3888]
[1759537812409,0.02777592,4500.3,4499.0,0.01667803]
[1759537812625,0.1112,4499.3,4499.1,0.3888]
[1759537812944,0.1112,4499.3,4499.2,0.01667556]
[1759537813321,0.1112,4499.3,4499.2,0.40547556]
[1759537813946,2.22139608,4501.7,4499.2,0.40547556]
[1759537814146,0.1112,4499.8,4499.2,0.51667556]
[1759537814354,0.1112,4500.1,4499.5,0.1112]
[1759537814513,0.1112,4500.1,4499.7,2.22237038]
[1759537814708,0.1112,4500.1,4499.8,3.18337122]
[1759537815150,0.002,4501.6,4499.8,3.18337122]
[1759537815151,0.1112,4500.6,4500.0,0.1112]
[1759537815444,0.1112,4500.6,4500.1,0.40546272]
[1759537815742,0.1112,4500.6,4500.2,0.27388849]
[1759537815946,0.1112,4500.6,4500.3,2.23872922]
[1759537816245,0.002,4501.6,4500.4,0.3888]
[1759537816448,0.1112,4501.0,4500.5,0.01665822]
[1759537816651,0.1112,4501.0,4500.6,0.3888]
[1759537816816,0.1112,4501.0,4500.7,2.5206566]
[1759537817212,0.1112,4501.0,4499.8,2.219]
[1759537817213,0.438,4500.8,4499.6,0.3888]
[1759537817514,0.1112,4499.9,4499.7,2.033]
[1759537817934,0.1112,4499.9,4499.8,0.3888]
[1759537818344,0.1112,4499.9,4499.8,0.40546772]
[1759537818636,0.1112,4500.1,4499.8,0.64764772]
[1759537818948,0.1112,4500.1,4499.8,0.24218]
[1759537819244,0.1112,4500.1,4499.9,0.3888]
[1759537819411,0.1112,4500.1,4500.0,0.3888]
[1759537820552,0.1112,4500.1,4499.8,0.24218]
[1759537821262,0.1112,4500.1,4499.8,0.63098]
[1759537821414,0.1112,4500.1,4499.8,0.24218]
[1759537821613,0.1112,4500.1,4499.7,2.033]
[1759537821614,0.1112,4500.1,4499.9,0.616318]
[1759537821913,0.1112,4500.7,4500.0,0.01666569]
[1759537822111,0.1112,4500.7,4500.1,2.61096691]
[1759537822311,0.1112,4500.7,4500.2,0.40546149]
[1759537822733,0.1112,4500.7,4500.2,2.62755716]
[1759537822938,0.1112,4500.7,4500.3,2.88472247]
[1759537823134,0.01,4500.9,4500.4,2.51965987]
[1759537823349,0.01,4500.9,4500.4,2.90845987]
[1759537823548,0.01,4500.9,4500.4,2.51965987]
[1759537823750,0.01,4500.9,4500.5,0.3888]
[1759537823949,0.01,4500.9,4500.6,0.01665741]
[1759537824147,0.01,4500.9,4500.5,0.70561315]
[1759537825154,0.01,4500.9,4500.5,0.31681315]
[1759537825340,0.01,4500.9,4500.6,0.3888]
[1759537826064,0.01,4500.9,4500.5,0.31681315]
[1759537826265,0.4423,4500.8,4500.6,2.503]
[1759537826475,0.4423,4500.7,4500.6,2.503]
[1759537827456,0.1112,4500.8,4500.6,2.503]
[1759537831287,0.1112,4500.8,4500.7,0.01665704]
[1759537832388,0.01,4500.9,4500.7,0.01665704]
[1759537832750,0.1212,4500.9,4500.6,2.503]
[1759537833372,0.002,4500.8,4500.6,2.503]
[1759537834884,0.002,4500.8,4500.6,2.51965741]
[1759537835184,0.002,4500.8,4500.6,2.90845741]
[1759537835748,0.002,4500.8,4500.6,2.81050315]
[1759537835950,0.002,4500.8,4500.7,2.62733363]
[1759537836152,0.002,4500.8,4500.7,2.73853319]
[1759537836852,0.002,4500.8,4500.7,3.003]
[1759537837049,0.002,4500.8,4500.7,19.67702019]
[1759537837392,0.002,4500.8,4500.7,19.91771772]
[1759537838187,0.002,4500.8,4500.7,22.67014472]
[1759537839168,0.002,4500.8,4500.7,22.77267472]
[1759537840200,0.002,4500.8,4500.7,24.51586072]
[1759537840366,0.002,4500.8,4500.7,10.48628272]
[1759537840566,0.002,4500.8,4500.7,11.65558172]
[1759537841193,0.002,4500.8,4500.7,11.67779072]
[1759537841764,0.002,4500.8,4500.7,5.83544313]
[1759537842381,0.002,4500.8,4500.7,0.29984313]
[1759537842726,0.002,4500.8,4500.7,2.502]
[1759537845682,0.002,4500.8,4500.7,4.72387659]
[1759537845889,0.002,4500.8,4500.7,2.502]
[1759537846533,0.002,4500.8,4500.7,2.5186566]
[1759537847252,0.002,4500.8,4500.7,4.85173319]
[1759537847441,0.002,4500.8,4500.7,4.83507659]
[1759537848740,0.446,4500.8,4500.7,2.502]
[1759537853348,0.002,4500.8,4500.7,2.502]
[1759537853531,0.4302,4500.8,4500.7,2.502]
[1759537854222,0.002,4500.8,4500.7,2.502]
[1759537855626,0.4302,4500.8,4500.7,2.502]
[1759537858567,0.5414,4500.8,4500.7,2.502]
[1759537860184,0.4302,4500.8,4500.7,2.502]
[1759537863286,0.002,4500.8,4500.7,2.502]
[1759537865186,0.002,4500.8,4500.7,2.5186566]
[1759537865387,0.002,4500.8,4500.7,2.502]
[1759537867170,0.4302,4500.8,4500.7,2.502]
[1759537867354,0.002,4500.8,4500.7,2.502]
[1759537867555,0.4302,4500.8,4500.7,2.502]
[1759537869194,0.002,4500.8,4500.7,2.502]
[1759537869356,0.4302,4500.8,4500.7,2.502]
[1759537870057,0.5414,4500.8,4500.7,2.502]
[1759537871693,0.1132,4500.8,4500.7,2.502]
[1759537873225,0.002,4500.8,4500.7,2.502]
[1759537873440,0.002,4500.8,4500.7,2.9074566]
[1759537874628,0.002,4500.8,4500.7,5.12933319]
[1759537874814,0.002,4500.8,4500.7,5.11267659]
[1759537875001,0.002,4500.8,4500.7,2.8908]
[1759537875201,0.002,4500.8,4500.7,2.9074566]
[1759537875400,0.002,4500.8,4500.7,5.43119885]
[1759537875588,0.002,4500.8,4500.7,5.41454225]
[1759537880328,0.002,4500.8,4500.7,3.19266566]
[1759537880658,0.002,4500.8,4500.7,2.80386566]
[1759537883054,0.4446,4500.8,4500.7,2.80386566]
[1759537883357,0.4446,4500.8,4500.7,2.5186566]
[1759537883556,0.5558,4500.8,4500.7,2.502]
[1759537889699,0.1132,4500.8,4500.7,2.502]
[1759537889857,0.559,4500.8,4500.7,2.502]
[1759537891357,0.1132,4500.8,4500.7,2.502]
[1759537893185,0.559,4500.8,4500.7,2.502]
[1759537893697,0.1132,4500.8,4500.7,2.502]
[1759537893872,0.559,4500.8,4500.7,2.502]
[1759537894268,0.1132,4500.8,4500.7,2.502]
[1759537894692,0.559,4500.8,4500.7,2.502]
[1759537895200,0.1132,4500.8,4500.7,2.502]
[1759537897606,0.559,4500.8,4500.7,2.502]
[1759537901503,0.1132,4500.8,4500.7,2.502]
[1759537901810,0.559,4500.8,4500.7,2.502]
[1759537902320,0.1132,4500.8,4500.7,2.502]
[1759537910948,0.5724,4500.8,4500.7,2.502]
[1759537911310,0.1132,4500.8,4500.7,2.502]
[1759537912045,0.5724,4500.8,4500.7,2.502]
[1759537914928,0.1132,4500.8,4500.7,2.502]
[1759537915852,0.5724,4500.8,4499.9,0.5]
[1759537916038,0.1112,4500.3,4500.0,2.502]
[1759537916242,0.1112,4500.3,4500.1,2.502]
[1759537916443,0.1112,4500.3,4499.6,2.33361178]
[1759537916754,0.4612,4500.2,4499.6,2.33361178]
[1759537917629,0.4612,4500.2,4499.7,2.502]
[1759537917945,0.4612,4500.2,4499.8,2.502]
[1759537918136,0.9204,4500.2,4499.9,2.502]
[1759537918333,0.9204,4500.2,4500.0,2.51866525]
[1759537918670,0.4612,4500.2,4500.0,2.51866525]
[1759537920331,0.4612,4500.2,4500.0,2.502]
[1759537920534,0.4612,4500.2,4500.1,0.01666445]
[1759537921366,0.4612,4500.2,4500.0,2.502]
[1759537921742,0.4592,4500.1,4500.0,2.502]
[1759537921944,0.77344467,4500.1,4500.0,2.502]
[1759537922633,2.99561751,4500.1,4500.0,2.502]
[1759537923435,3.02339467,4500.1,4500.0,2.502]
[1759537924381,0.80122183,4500.1,4497.5,1.59341592]
[1759537924537,0.80122183,4500.1,4498.2,2.31]
[1759537924538,2.22250862,4499.5,4498.2,2.31]
[1759537924735,0.4592,4499.4,4498.2,2.31]
[1759537924961,0.4592,4499.3,4498.2,2.31]
[1759537925172,1.12622167,4499.3,4498.2,2.31]
[1759537925396,1.12622167,4499.3,4498.2,4.53310388]
[1759537925695,1.12622167,4499.3,4498.3,2.502]
[1759537926573,1.12622167,4499.3,4498.3,2.7938]
[1759537927411,1.12622167,4499.3,4498.3,2.502]
[1759537927591,0.48698271,4499.2,4498.3,2.502]
[1759537927896,0.1112,4498.5,4497.8,0.364]
[1759537928496,0.1112,4498.5,4496.9,2.309]
[1759537928497,0.4592,4498.4,4496.9,2.309]
[1759537928704,0.1112,4498.1,4497.4,0.1112]
[1759537929017,0.4592,4498.0,4497.2,0.2319]
[1759537929197,0.1112,4497.5,4497.3,2.503]
[1759537929498,0.5704,4497.5,4497.3,2.503]
[1759537929884,0.66724717,4497.4,4497.3,2.503]
[1759537930700,1.12644717,4497.4,4496.1,0.01]
[1759537930906,0.1112,4497.2,4496.1,0.01]
[1759537931201,0.1112,4497.2,4497.1,0.208]
[1759537931600,0.5704,4497.2,4497.1,0.208]
[1759537931965,0.1112,4497.2,4497.1,0.208]
[1759537934572,0.5704,4497.2,4497.1,0.208]
[1759537936407,0.69416472,4497.2,4497.1,0.208]
[1759537937078,2.91777051,4497.2,4497.1,0.208]
[1759537937281,0.23496472,4497.2,4497.1,0.208]
[1759537937508,0.1112,4497.2,4497.1,0.208]
[1759537937707,0.66724717,4497.4,4497.1,0.208]
[1759537937864,0.77844717,4497.4,4497.1,0.208]
[1759537938409,0.77844717,4497.4,4497.1,0.4608]
[1759537938769,0.77844717,4497.4,4497.1,0.208]
[1759537939166,0.66724717,4497.4,4497.1,0.209]
[1759537939768,0.66724717,4497.4,4497.2,0.2528]
[1759537941133,0.66724717,4497.4,4497.1,0.209]
[1759537949038,1.11764717,4497.4,4497.1,0.209]
[1759537949278,0.77844717,4497.4,4497.1,0.209]
[1759537949571,0.1112,4497.4,4497.1,0.209]
[1759537949729,0.66723826,4497.3,4497.1,0.209]
[1759537953371,0.66723826,4497.3,4497.1,0.011]
[1759537953691,5.10180086,4497.2,4497.1,0.011]
[1759537953831,5.87326064,4497.2,4497.1,0.011]
[1759537954536,6.54066812,4497.2,4497.1,0.011]
[1759537957512,3.86666233,4497.2,4497.1,0.011]
[1759537957797,0.66740748,4497.2,4497.1,0.011]
[1759537958298,0.002,4497.8,4497.1,2.517]
[1759537958597,0.26950442,4497.4,4497.1,0.011]
[1759537958797,2.22360579,4497.2,4497.1,0.011]
[1759537959188,3.19070484,4497.2,4497.1,0.011]
[1759537959698,0.51669905,4497.2,4497.1,0.011]
[1759537959901,2.67400579,4497.2,4497.1,0.011]
[1759537960588,3.34134943,4497.2,4497.1,0.011]
[1759537960785,1.11774364,4497.2,4497.1,0.011]
[1759537961186,3.34134943,4497.2,4497.1,0.011]
[1759537961580,1.11774364,4497.2,4497.1,0.011]
[1759537962402,1.23229739,4497.2,4497.1,0.011]
[1759537963618,1.34349739,4497.2,4497.1,0.011]
[1759537964514,3.56710318,4497.2,4497.1,0.011]
[1759537965780,1.34349739,4497.2,4497.1,0.011]
[1759537966175,3.56710318,4497.2,4497.1,0.011]
[1759537967692,1.34349739,4497.2,4497.1,0.011]
[1759537967896,0.77854364,4497.2,4497.1,0.011]
[1759537968284,0.77854364,4497.2,4497.1,0.2638]
[1759537968910,0.77854364,4497.2,4497.1,0.011]
[1759537969105,0.002,4497.8,4497.1,0.2638]
[1759537969323,0.1112,4497.4,4497.2,0.0166981]
[1759537970048,0.1112,4497.4,4497.1,0.2638]
[1759537970401,0.1112,4497.4,4497.1,0.011]
[1759537970604,0.1112,4497.4,4497.2,0.01669984]
[1759537971412,0.1112,4497.7,4497.2,0.01669984]
[1759537971612,0.1112,4497.7,4497.2,0.2528]
[1759537972933,0.1112,4497.7,4497.1,0.1222]
[1759537975145,0.1112,4497.7,4497.1,0.375]
[1759537975542,0.1112,4497.7,4497.1,0.1222]
[1759537975749,0.1112,4497.7,4497.2,0.26949855]
[1759537975908,0.1112,4497.7,4497.3,0.2528]
[1759537976248,0.1112,4497.7,4497.1,0.1222]
[1759537980568,2.65170957,4497.6,4497.1,0.011]
[1759537980732,0.27647188,4497.7,4497.2,2.506]
[1759537980733,0.1112,4497.4,4497.2,2.506]
[1759537981138,0.4283,4497.3,4497.2,2.506]
[1759537982148,0.70459601,4497.3,4497.2,2.506]
[1759537982453,2.65185635,4497.3,4497.2,2.506]
[1759537983256,0.4283,4497.3,4497.2,2.506]
[1759537983975,2.65185635,4497.3,4497.2,2.506]
[1759537984975,0.4283,4497.3,4497.2,2.506]
[1759537987812,2.65185635,4497.3,4497.2,2.506]
[1759537988013,3.22002327,4497.3,4497.2,2.506]
[1759537990219,2.6796508,4497.3,4497.2,2.506]
[1759537990382,0.45609445,4497.3,4497.2,2.506]
[1759537990581,0.4283,4497.3,4497.2,2.506]
[1759537991021,2.65185635,4497.3,4497.2,2.506]
[1759537991534,0.4283,4497.3,4497.2,2.506]
[1759537991739,0.99645689,4497.3,4497.1,0.011]
[1759537991891,0.56815689,4497.3,4497.2,2.506]
[1759537992231,2.79171324,4497.3,4497.2,2.506]
[1759537992428,0.56815689,4497.3,4497.2,2.506]
[1759537992729,3.22001324,4497.3,4497.2,2.506]
[1759537993328,2.22360579,4497.2,4497.1,0.011]
[1759537993515,2.87638862,4497.2,4497.1,2.517]
[1759537993688,3.30468862,4497.2,4497.1,2.517]
[1759537994101,1.08108283,4497.2,4497.1,2.517]
[1759537994400,0.4283,4497.2,4497.1,2.517]
[1759537994808,0.4283,4497.2,4497.1,0.011]
[1759537995118,0.4283,4497.2,4497.1,2.517]
[1759537995716,0.77853474,4497.4,4497.1,2.517]
[1759537997216,1.20683474,4497.4,4497.1,2.517]
[1759537997417,0.77853474,4497.4,4497.1,2.517]
[1759537997627,1.30385211,4497.4,4497.1,2.517]
[1759537998029,0.4283,4497.3,4497.1,2.517]
[1759537998417,2.65186243,4497.3,4497.1,2.517]
[1759537998594,0.45609507,4497.2,4497.1,2.517]
[1759537999110,0.02779507,4497.2,4497.1,2.517]
[1759537999521,0.45609507,4497.2,4497.1,2.517]
[1759538000309,0.4283,4497.2,4497.1,2.517]
[1759538000512,0.80632857,4497.4,4497.1,2.517]
[1759538000748,0.12549286,4497.3,4497.1,2.517]
[1759538001044,1.22713474,4497.4,4497.1,2.517]
[1759538001240,2.67220579,4497.2,4497.1,0.011]
[1759538002043,3.33961327,4497.2,4497.1,0.011]
[1759538003357,5.73961327,4497.2,4497.1,0.011]
[1759538003655,7.0219481,4497.2,4497.1,0.011]
[1759538005339,6.54705023,4497.2,4497.1,0.011]
[1759538007359,3.87484444,4497.2,4497.1,0.011]
[1759538007564,3.90263951,4497.2,4497.1,0.011]